Cogmind - Beta 15 @@@ ROGUE MODE // 2025.09.17 @ 11:07:07 Player: Kotyk77 Result: Destroyed by 44-H6S(R) with Subdweller Beam Cannon Performance ------------- Evolutions (0) 0 Regions Visited (2) 400 Robots Destroyed (20) 100 Value Destroyed (518) 518 Prototype IDs (0) 0 Alien Tech Used (0) 0 Bonus (0) 0 TOTAL SCORE: 1018 Bonus ------- None Cogmind --------- Core Integrity 0/250 Matter 252/300 Energy 250/250 System Corruption 0% Temperature Cool (9) Movement Walking (120) Location -10/Subcaves Parts ------- > --- POWER (1) -------- Ion Engine > --- PROPULSION (2) --- Aluminum Leg Aluminum Leg > --- UTILITY (2) ------ Small Storage Unit Subdweller Optics > --- WEAPON (2) ------- Battle Rifle Mini Grenade Launcher > --- INVENTORY (8) ---- Ion Engine Ion Engine Aluminum Leg Aluminum Leg Aluminum Leg Grenade Launcher Mini Grenade Launcher Mini Grenade Launcher Peak State ------------ > --- POWER ------------ Ion Engine > --- PROPULSION ------- Aluminum Leg Aluminum Leg > --- UTILITY ---------- Small Storage Unit Subdweller Optics > --- WEAPON ----------- Battle Rifle Mini Grenade Launcher > --- INVENTORY -------- Ion Engine Aluminum Leg EM Shotgun Small Laser Grenade Launcher Grenade Launcher Mini Grenade Launcher Mini Grenade Launcher [Rating: 11] Favorites ----------- Power Ion Engine Engine Ion Engine Propulsion Aluminum Leg Leg Aluminum Leg Utility Small Storage Unit Device Subdweller Optics Storage Small Storage Unit Processor Visual Processing Unit Weapon Mini Grenade Launcher Energy Gun Small Laser Ballistic Gun Assault Rifle Launcher Mini Grenade Launcher Build | -11 -10 -10 ------- Run | Yrd Mat Sub Slots Evolved . | . . . Power . | . . . Propulsion . | . . . Utility . | . . . Weapon . | . . . Parts Attached 21 | 7 7 7 Power 4 | 1 2 1 Engine 4 | 1 2 1 Core . | . . . Reactor . | . . . Propulsion 8 | 2 2 4 Treads . | . . . Leg 8 | 2 2 4 Wheel . | . . . Hover . | . . . Flight . | . . . Utility 4 | 1 2 1 Device 1 | . . 1 Storage 1 | 1 . . Processor 2 | . 2 . Hackware . | . . . Protection . | . . . Artifact . | . . . Weapon 5 | 3 1 1 Energy Gun 2 | 2 . . Energy Cannon . | . . . Ballistic Gun 2 | 1 . 1 Ballistic Cannon . | . . . Launcher 1 | . 1 . Special Weapon . | . . . Impact Weapon . | . . . Slashing Weapon . | . . . Piercing Weapon . | . . . Special Melee Weapon . | . . . Unidentified Prototypes . | . . . Parts Lost . | . . . Power . | . . . Propulsion . | . . . Utility . | . . . Weapon . | . . . Highest Loss Streak . | . . . To Critical Strikes . | . . . Average Backups 7 | 2 7 8 Power 1 | . 1 1 Propulsion 1 | 1 1 1 Utility . | . . . Weapon 4 | . 5 4 Tool/Special . | . . . Unused Backups 15 | . 3 12 Power 4 | . . 4 Propulsion 5 | . 2 3 Utility . | . . . Weapon 6 | . 1 5 Tool/Special . | . . . Average Slot Usage (%) 97 | . 94 100 Engine 13 | . 13 14 Leg 28 | . 28 28 Device 4 | . . 8 Storage 14 | . 14 14 Processor 7 | . 9 5 Energy Gun 2 | . 5 . Ballistic Gun 14 | . 14 14 Launcher 11 | . 8 14 Peak Build Rating 11 | 6 10 11 Average Rating 9 | 5 8 10 On Entrance 5 | . 6 10 Naked Turns . | . . . Heaviest Build 15 | 11 13 15 Greatest Support 20 | 20 20 20 Greatest Overweight (x) 1 | 1 . . Average Overweight (x) . | . . . Largest Inventory Capacity 8 | 8 8 8 Average Capacity 7 | 7 8 8 Most Carried 8 | 4 8 8 Average Carried 7 | 2 7 7 Final Capacity 8 | 8 8 8 Final Carried 8 | 4 8 8 Class Distribution -------------------- 75% | Mutant 24% | Scavenger-Mutant Dominant Class ---------------- Mutant | -10/Materials Scavenger-Mutant | -10/Subcaves Resources | -11 -10 -10 ----------- Run | Yrd Mat Sub Matter Collected 645 | 206 157 282 Remotely . | . . . Salvage Created 426 | . 268 158 Parts 36 | . 29 7 Haulers Intercepted . | . . . Recyclers Shooed 1 | . 1 . Parts Field Recycled . | . . . Retrieved Matter . | . . . Parts Self-Destructed 7 | . . 7 Prevented . | . . . Kills | -11 -10 -10 ------- Run | Yrd Mat Sub Combat Hostiles Destroyed 13 | . 7 6 Guns 4 | . 1 3 AOE 9 | . 6 3 Classes Destroyed 8 | . 6 2 Worker 2 | . 2 . Builder 2 | . 2 . Recycler 1 | . 1 . Watcher 2 | . 2 . Swarmer 3 | . 3 . Grunt 5 | . 4 1 Sentry 1 | . . 1 Subdweller 4 | . . 4 Best Kill Streak 10 | . 10 3 Combat Bots Only 3 | . 2 3 Max Kills in Single Turn 3 | . 3 1 Gunslinging . | . . . Exploded 2 | . 2 1 Melee . | . . . Uniques/NPCs Destroyed . | . . . Combat | -11 -10 -10 -------- Run | Yrd Mat Sub Hostile Shots Fired 42 | . 14 28 Missed 15 | . 5 10 Hits 27 | . 9 18 Projectile 27 | . 9 18 Critical Strikes 1 | . . 1 Damage Taken 661 | . 276 385 Core 279 | . 107 172 Absorbed by Shields . | . . . Core Remaining (%) 100 | 100 . . Volleys Fired 34 | . 19 15 Largest 2 | . 2 2 Hottest 60 | . 60 55 Shots Fired 57 | . 31 26 Gun 37 | . 22 15 Cannon . | . . . Launcher 20 | . 9 11 Special . | . . . Kinetic 34 | . 19 15 Thermal 3 | . 3 . Explosive 20 | . 9 11 Electromagnetic . | . . . Robot Hit Streak 12 | . 3 12 Robot Miss Streak 4 | . 3 4 Penetration Max . | . . . Secondary Targets . | . . . Shots Hit Robots 32 | . 18 14 Core Hits 30 | . 19 11 Critical Kills . | . . . Critical Parts Destroyed . | . . . Critical Strikes . | . . . Melee Attacks . | . . . Impact . | . . . Slashing . | . . . Piercing . | . . . Sneak Attacks . | . . . Combat Hostiles . | . . . Follow-up Attacks . | . . . Damage Inflicted 1401 | 11 682 708 Guns 288 | . 163 125 Cannons . | . . . Explosions 1102 | . 519 583 Melee . | . . . Ramming 11 | 11 . . Kinetic 277 | . 152 125 Thermal 52 | . 52 . Explosive 1061 | . 478 583 Electromagnetic . | . . . Impact . | . . . Slashing . | . . . Piercing . | . . . Highest Corruption . | . . . Average Corruption . | . . . Corruption Purged . | . . . Corruption Blocked . | . . . Overload Shots . | . . . Overflow Damage 1 | . 1 . Projectiles . | . . . Explosions 1 | . 1 . Melee . | . . . Knockbacks . | . . . Impact . | . . . Kinetic . | . . . Secondary . | . . . Self-Inflicted Damage 184 | . 184 . Shots 4 | . 4 . Rammed . | . . . Targets Rammed 6 | 6 . . Kicked 6 | 6 . . Crushed . | . . . Highest Temperature 253 | . 11 253 Average Temperature 87 | . 5 146 Received Heat Transfer 421 | . 39 382 Effects 3 | . . 3 Interference 3 | . . 3 Siege Activations . | . . . Martial Activations . | . . . Shielding Activations . | . . . Robots Disrupted . | . . . Combat Hostiles . | . . . Robots Corrupted . | . . . Combat Hostiles . | . . . Parts Fried . | . . . Impact Corruptions . | . . . Robots Melted . | . . . Combat Hostiles . | . . . Parts Melted . | . . . Heat Transferred 75 | . 75 . Parts Sabotaged . | . . . Parts Stolen . | . . . Parts Stripped . | . . . Power Chain Reactions . | . . . Alert | -11 -10 -10 ------- Run | Yrd Mat Sub Maximum Alert Level 1 | . 1 . Low Security (%) 71 | 100 62 . Level 1 28 | . 37 . Level 2 . | . . . Level 3 . | . . . Level 4 . | . . . Level 5 . | . . . High Security . | . . . Max Security . | . . . Peak Influence 296 | . 296 . Initial . | . . . Average 98 | . 127 . Influence Increases 405 | . 365 40 Destroy 0b10 Robot/C 180 | . 140 40 Destroy 0b10 Robot/NC 35 | . 35 . Destroy Leader 34 | . 34 . Successful Hack 4 | . 4 . Disable Machine 75 | . 75 . Destroy Structure 77 | . 77 . Influence Decreases 405 | . 115 290 Entered New Map 121 | . . 121 Time Decay 284 | . 115 169 Squads Dispatched 4 | . 4 . Investigation 3 | . 3 . Extermination . | . . . Reinforcement 1 | . 1 . Assault . | . . . Garrison . | . . . Intercept . | . . . Searches Triggered . | . . . Construction Impeded . | . . . Haulers Reinforced . | . . . Active Scanning Responses . | . . . Cargo Convoy Interrupts . | . . . Stealth | -11 -10 -10 --------- Run | Yrd Mat Sub Distress Signals 2 | . 2 . Communications Jammed . | . . . Distress Signals . | . . . Times Spotted 20 | . 11 9 Peak Tracking Total 4 | . 4 3 Tactical Retreats . | . . . Traps | -11 -10 -10 ------- Run | Yrd Mat Sub Traps Triggered 1 | . 1 . Indirectly . | . . . Trap Hack Attempts . | . . . Triggered . | . . . Disarmed . | . . . Reprogrammed . | . . . Reused . | . . . Traps Extracted . | . . . Installed . | . . . Triggered . | . . . Machines | -11 -10 -10 ---------- Run | Yrd Mat Sub Machines Disabled 5 | . 5 . Max in Single Turn 2 | . 2 . Machines Repaired . | . . . Machines Dismantled . | . . . Machines Sabotaged . | . . . Overloaded Fab Kills . | . . . Hacking | -11 -10 -10 --------- Run | Yrd Mat Sub Machines Accessed 4 | . 3 1 Terminals 3 | . 3 . Fabricators . | . . . Repair Stations . | . . . Recycling Units . | . . . Scanalyzers . | . . . Garrison Access . | . . . Total Hacks 13 | . 9 4 Successful 6 | . 2 4 Failed 7 | . 7 . Catastrophic 1 | . 1 . Database Lockouts . | . . . Manual 10 | . 9 1 Terminals 9 | . 9 . Fabricators . | . . . Repair Stations . | . . . Recycling Units . | . . . Scanalyzers . | . . . Garrison Access . | . . . Terminal Hacks 4 | . . 4 Record 4 | . . 4 Fabricator Hacks . | . . . Repair Station Hacks . | . . . Recycling Unit Hacks . | . . . Scanalyzer . | . . . Garrison Access Hacks . | . . . Unauthorized Hacks 2 | . 2 . Terminals 2 | . 2 . Botnet 2 | . 2 . Fabricators . | . . . Repair Stations . | . . . Recycling Units . | . . . Scanalyzers . | . . . Garrison Access . | . . . Data Cores Recovered . | . . . Used . | . . . Hacking Detections 3 | . 3 . Full Trace Events 3 | . 3 . Feedback Events . | . . . Feedback Blocked . | . . . Robot Schematics Acquired . | . . . Robots Built . | . . . Authchips . | . . . Time . | . . . Total Robot Build Rating . | . . . Part Schematics Acquired . | . . . Parts Built . | . . . Authchips . | . . . Time . | . . . Total Part Build Rating . | . . . Parts Repaired . | . . . Time . | . . . Parts Recycled . | . . . Recycled Matter . | . . . Retrieved Matter . | . . . Retrieved Components . | . . . Parts Scanalyzed . | . . . Part Schematics Acquired . | . . . Parts Damaged . | . . . Bothacking | -11 -10 -10 ------------ Run | Yrd Mat Sub Used RIF Installer . | . . . Robots Hacked . | . . . Non-combat . | . . . Combat . | . . . Robot Hacks Applied . | . . . Relay Couplers Released . | . . . Fabnet Peak Effective % . | . . . Robots Rewired . | . . . Allies Hacked . | . . . Hacks Repelled . | . . . Allies | -11 -10 -10 -------- Run | Yrd Mat Sub Total Allies . | . . . Largest Group . | . . . Highest-Rated Group . | . . . Highest-Rated Ally . | . . . Total Orders . | . . . Ally Attacks . | . . . Total Damage . | . . . Kills . | . . . Allies Corrupted . | . . . Allies Melted . | . . . Intel | -11 -10 -10 ------- Run | Yrd Mat Sub Active Infowar (turns) 626 | . 157 469 Optics 626 | . 157 469 Robot Analysis Total . | . . . Derelict Logs Recovered . | . . . Drone Launches . | . . . Drone Recoveries . | . . . Exploration | -11 -10 -10 ------------- Run | Yrd Mat Sub Turns Passed 968 | 109 379 480 Spaces Moved 671 | 68 254 349 Core 4 | 4 . . Treads . | . . . Legs 667 | 64 254 349 Wheels . | . . . Hover . | . . . Flight . | . . . Fastest Speed 50 | 50 120 120 Average Speed 120 | 125 120 120 Slowest Speed 190 | 190 120 120 Overloaded Moves . | . . . Propulsion Burnouts . | . . . Robots Hopped . | . . . Potential Cave-ins . | . . . Cave-ins Triggered . | . . . Exploration Rate (%) 21 | 4 43 18 Regions Visited 2 Branch Regions 1 Pre-discovered Areas 1 | . . 1 Known Exits Taken . | . . . Unknown Exits Taken 2 | 1 1 . Scrap Searched . | . . . Spaces Dug . | . . . Terrain Destroyed 137 | . 88 49 Melee . | . . . Projectile . | . . . AOE 137 | . 88 49 Terrain Rammed . | . . . Walls Destroyed . | . . . Machines Disabled . | . . . Actions | -11 -10 -10 --------- Run | Yrd Mat Sub Total 780 | 87 299 394 Wait 10 | 1 4 5 Move 670 | 68 253 349 Hop . | . . . Pick Up 19 | 5 8 6 Fast Attach 9 | 6 3 . Attach . | . . . Detach 1 | . 1 . Swap 12 | 1 4 7 Drop 20 | 1 7 12 Fire 34 | . 19 15 Melee . | . . . Ram . | . . . Kick 5 | 5 . . Crush . | . . . Escape Stasis . | . . . Rewire . | . . . Trap . | . . . Miscellaneous . | . . . Route ------- -11/Scrapyard -10/Materials (discovered 2 exits: [*Min] / *Sub) -10/Subcaves History --------- Turn | Location | Event 41 | -11/Scrapyard | Discovered new exit (range 14) 110 | -11/Scrapyard | Entered Materials 111 | -10/Materials | Met a group of wandering Federalists 224 | -10/Materials | Discovered new exit (range 9) 291 | -10/Materials | Discovered new exit (range 15) 315 | -10/Materials | Build established: Mutant 489 | -10/Materials | Entered Subcaves 490 | -10/Subcaves | Continued accompanying wandering Federalists (6) 490 | -10/Subcaves | Approached by a straggling Scientist 654 | -10/Subcaves | Core integrity fell below 50% 689 | -10/Subcaves | Lost 10 allies 784 | -10/Subcaves | Shifting Twisted Machinery released Sub. Laser 817 | -10/Subcaves | Visited Clippyterm 819 | -10/Subcaves | Learned location of Deep Caves (-6) 929 | -10/Subcaves | Core integrity fell below 20% 969 | -10/Subcaves | Destroyed by 44-H6S(R) with Subdweller Beam Cannon Last Messages --------------- help? World map updated: -6/Deep Caves. >>Record! "Botnets" It looks like you seek to become a more effective hacker when it comes to the important hacks, and I heartily recommend installing Trojan(Botnet) on at least one or two Terminals to improve your odds of success elsewhere. >>Record! "Optimus" It looks like you're curious about the current leader of 0bPrime. Optimus is well liked, but certainly not being up front with the UFD as a whole. 00819_ Connecting with Clippyterm... 00885_ Critical hit (Meltdown: +280). 00887_ Overheating: System interference. 00887_ Battle Rifle temporarily disabled. 00887_ Mni. Grenade Launcher temporarily disabled. 00887_ Sub. Optics temporarily disabled. 00892_ Subatomizers dissect the Ion Engine. 00930_ LP-LF2(R) destroyed. 00932_ The unstable cave ceiling collapses. 00932_ Disposable Heat Sink crushed. Map ----- +----------------------------------------------------+ | | | | | | | | | | | | | | | | | ?????????????????????????????????????????????????? | | ?????????????????????????????????????????????????? | | ?????????????????????????????????????????????????? | | ?????????????????????????????????????????????????? | | ?????????????????????????????????????????????????? | | ?????????????????????????????????????????????????? | | ?????????????????????????????????????????????????? | | ?????????????????????????????????????????????????? | | ?????????????????????????????????????????????????? | | ?????????????????????????????????????????????????? | | ?????????????????????????????????????????????????? | | ?????????????????????????????????????????????????? | | ?????????????????????????????????????????????????? | | ?????????????????????????????????????????????????? | | ???###?##????????????????????????????????????????? | | #### ## #??????????########??????????????????????? | | #???######## # # ### ##???????????????? | | ###?### ## @ #???????????????? | | #?### u #???????????????? | | #?# # # # # ?????????? | | ##?# ############; ? %% ?????? | | ##?# #####???????????# ?? R R ????? | | ### ##???????????????? ??? ?????? | | #?????????????????? ???? ?????? | | # #???????????????????## ????? ?????? | | ## ##???????????????????? ????? ??????? | | ## ##???????????????????? ????????????? | | #????????????????????? ???????????? | | #?????????????????????? ??????????? | | ## #### #??????????????????????? ?????????? | | ####???# #????????????????????????##????????? | | #??????###??????????????????????????????????? | | #??????????????????????????????????????????? | | #??????????????????????????????????????????? | | ## #?????????????????????????????????????????? | | ?## #??????????????????????????????????????? | | ??## ???????????????????????????????????? | | ????#### #???????????????????????????????????? | | ????????# #???????????????????????????????????? | | ?????????# #??????????????????????????????????? | | ??????????#####??????????????????????????????????? | | ?????????????????????????????????????????????????? | +----------------------------------------------------+ Best States ------------- Heat Dissipation 25 Energy Generation 10 Energy Capacity 250 Matter Stores 300 Matter Capacity 300 Sight Range 21 Terrain Scan Density 85 Evasion (%) 55 Item Schematics ----------------- None Robot Schematics ------------------ None Fabricated ------------ Nothing Repaired ---------- Nothing Alien Tech Used ----------------- None Achievements -------------- Party Time Challenges ------------ None Game ------ Seed MyomerSpectralScreen Manual? 0 Play Time 00:22:49 Cumulative 48.2 hours Start 2025.09.17 @ 07:43:48 End 2025.09.17 @ 11:07:07 Sessions 5 Manual Loads 0 Difficulty Rogue Special Mode None Game No. 54 Rogue 54 Adventurer 0 Explorer 0 Win Type - Total 0 Types 0/0/0/0/0/0/0/0/0/0 Lore% 17 Gallery% 29 Achievement% 26 Wizard Run 0 Options --------- Layout 1 ASCII 0 Keyboard 0 Movement Numpad Keybinds 0 Fullscreen 1 Font 32/SmallcapsGlow Map View 77x35 Zoom Use 0% Tactical HUD 1 Map Filters NONE Filters NONE Steam 1 RUN: 83d4ad23-1c76-4a99-8c35-3f69f2a33b2c